{"text_format":"1","workbook":"xlsx","n_sheets":11,"sheets":["Инф-я","Форма 1.1","Форма 1.2","Форма 2.1","Форма 2.2","форма 2.3","форма 2.4","форма 3 ","Форма 8.1 предприятие","Корр. КНК","Выбор оценочного балла"],"not_rendered":{"charts":0,"images":10,"macros":1,"external_links":9,"defined_names":2439,"comments":1,"pivot_tables":0},"unopened":[],"bounds":{"document_bytes":16777216,"sheet_cells":100000,"rows_first":2000,"rows_last":500,"rows_between":2000,"halvings":0,"cell_chars":16384,"cell_head_chars":4096},"cells_cut":0,"cells_raw":0,"read":"whole","date_system":"1900"}

{"sheet":"Инф-я","index":0,"n_rows":113,"n_cols":3,"rows_kept":113,"cut":false,"hidden":false,"merged":[[38,0,38,2],[40,0,40,2],[41,0,41,2],[4,1,4,2],[1,0,1,2],[34,0,34,2],[36,0,36,2],[37,0,37,2],[39,0,39,2]]}
[]
[]
[]
[]
[null,"Информация об организации"]
[]
["№ п/п","Требуемая информация","Данные об организации"]
["1.","Наименование организации в соответствии с уставом:"]
[null,"сокращенное название организации ","АО \"Технопарк\""]
[null,"полное наименование организации ","Акционерное общество \"Технопарк\""]
["2.","Муниципальное образование","Ясногорский район"]
["3.","Адрес организации:"]
[null,"юридический адрес","301032, Тульская обл., г. Ясногорск, ул. Заводская, д. 3, литера 138"]
[null,"фактический адрес (месторасположение)","301032, Тульская обл., г. Ясногорск, ул. Заводская, д. 3, литера 138"]
["4.","ИНН",7136025990]
["5.","КПП",713601001]
["6.","ФИО руководителя организации","Федулин Андрей Анатольевич"]
[null,"контактный телефон/факс","8-960-599-11-00"]
[null,"е-mail","tehnopark09@yandex.ru"]
["7.","ФИО начальника ПЭО","-"]
[null,"контактный телефон/факс","-"]
["8.","ФИО ответственного за электрохозяйство","Антропов Виктор Васильевич"]
[null,"контактный телефон/факс","8-961-147-99-00"]
["9.","ФИО главного бухгалтера","Северьянова Оксана Павловна"]
[null,"контактный телефон/факс","8-903-035-99-44"]
["10.","ФИО непосредственного исполнителя","Сорокина Ирина Владимировна"]
[null,"контактный телефон/факс","8-960-612-00-05"]
[null,"е-mail","zao.tp@mail.ru"]
["11.","Банковские реквизиты:"]
[null,"расчетный счет","40702810566070100900"]
[null,"банк","Отделение № 8604 Сбербанка России г. Тула"]
[null,"корреспондентский счет","30101810300000000608"]
[null,"БИК","047003608"]
[]
[]
[]
[]
[]
[]
[]
[]
[]
[]
[]
[]
[]
[]
[]
[]
[]
[]
[]
[]
[]
[]
[]
[]
[]
[]
[]
[]
[]
[]
[]
[]
[]
[]
[]
[]
[]
[]
[]
[]
[]
[]
[]
[]
[]
[]
[]
[]
[]
[]
[]
[]
[]
[]
[]
[]
[]
[]
[]
[]
[]
[]
[]
[]
[]
[]
[]
[1,"ООО «Радугагорэнерго»"]
[2,"МУП «Горэлектросеть» г. Муром"]
[3,"МУП «Александровэлектросеть»"]
[4,"ООО «СтройГарант»"]
[5,"ООО «Костеревские городские электрические сети»"]
[6,"ООО «Ковровэлектросетьремонт»"]
[7,"ООО «ПромРЭС»"]
[8,"ООО «ПромЭнерго» г. Судогда"]
[9,"ОАО «Энергетик» г. Карабаново"]
[10,"ООО «Электросистемы» "]
[11,"ООО «Ярцево-Энерго»"]
[12,"ПАО «Ставровский завод АТО»"]
[13,"ООО «ЭнергоАктив»"]

{"sheet":"Форма 1.1","index":1,"n_rows":27,"n_cols":4,"rows_kept":27,"cut":false,"hidden":false,"merged":[[1,0,1,3],[5,0,5,3],[26,0,29,3],[3,1,3,3],[21,0,21,1],[21,2,21,4]]}
[]
["Форма 1.1 - Журнал учета текущей информации о прекращении передачи электрической энергии для потребителей услуг за 2018 год   "]
[]
[null,{"$f":"'Инф-я'!C9","v":"АО \"Технопарк\""}]
[]
["(наименование территориальной сетевой организации)"]
["№","Период","Продолжительность прекращения,\nчас.","Количество точек присоединения потребителей услуг к электрической сети электросетевой организации, шт."]
[1,2,3,4]
[1,"январь",0.03,47]
[2,"февраль","-",49]
[3,"март",1.17,49]
[4,"апрель",20.9,49]
[5,"май","-",50]
[6,"июнь","-",50]
[7,"июль","-",50]
[8,"август",2.7,50]
[9,"сентябрь","-",50]
[10,"октябрь",3.55,50]
[11,"ноябрь","-",50]
[12,"декабрь",29.11,50]
[]
["Руководитель организации",null,{"$f":"'Инф-я'!$C$17","v":"Федулин Андрей Анатольевич"}]
[]
[]
[]
[]
["Согласно п. 14 Постановления Правительства от 31.12.2009 г.  № 1220 организации предоставляют регулирующим органам до 1 апреля года, следующего за отчетным, отчетные данные, используемые при расчете фактических значений показателей надежности и качества"]

{"sheet":"Форма 1.2","index":2,"n_rows":10,"n_cols":6,"rows_kept":10,"cut":false,"hidden":false,"merged":[[9,1,9,2],[9,3,9,5],[1,0,1,4],[2,0,2,4],[3,0,3,4],[5,0,5,2],[6,0,6,2],[7,0,7,2]]}
[]
["Форма 1.2 - Расчет фактического показателя средней продолжительности прекращений передачи электрической энергии за 2018 год"]
[{"$f":"'Инф-я'!C9","v":"АО \"Технопарк\""}]
["(наименование территориальной сетевой организации)"]
[]
["Максимальное за расчетный период",null,null,"Максимальное за расчетный период регулирования число точек присоединения  потребителей услуг к э. сети ТСО, шт.",{"$f":"MAX('Форма 1.1'!D9:D20)","v":50}," "]
["Суммарная продолжительность прекращений передачи электрической энергии, час. (Тпр)",null,null,"гр. 3 формы 1.1",{"$f":"SUM('Форма 1.1'!C9:C20)","v":57.459999999999994}]
["Показатель средней продолжительности прекращений передачи электрической энергии (Пп)",null,null,"Пп = Тпр/Nтп",{"$f":"IF(E6=0,0,E7/E6)","v":1.1491999999999998}]
[]
[null,"Руководитель организации",null,{"$f":"'Инф-я'!$C$17","v":"Федулин Андрей Анатольевич"}]

{"sheet":"Форма 2.1","index":3,"n_rows":33,"n_cols":8,"rows_kept":33,"cut":false,"hidden":false,"merged":[[32,0,32,1],[12,5,12,6],[0,0,0,7],[1,0,1,7],[2,0,2,7],[5,0,6,0],[5,1,6,1],[5,2,5,3],[5,4,6,4],[5,5,6,6],[5,7,6,7],[7,5,7,6],[8,5,8,6],[9,5,9,6],[10,5,10,6],[11,5,11,6],[24,5,24,6],[13,5,13,6],[14,5,14,6],[15,5,15,6],[16,5,16,6],[17,5,17,6],[18,5,18,6],[19,5,19,6],[20,5,20,6],[21,5,21,6],[22,5,22,6],[23,5,23,6],[35,2,35,4],[35,5,35,7],[37,5,37,7],[25,5,25,6],[26,5,26,6],[27,5,27,6],[28,5,28,6],[29,5,29,6],[30,5,30,6],[32,2,32,7]]}
["Форма 2.1 - Расчет значения индикатора информативности за 2018 год"]
[{"$f":"'Инф-я'!C9","v":"АО \"Технопарк\""}]
["(наименование территориальной сетевой организации)"]
[]
[]
["Наименование параметра (критерия), характеризующего индикатор","Ед.изм-ния","Значение",null,"Ф / П * 100, %","Зависи-мость",null,"Оценочный балл "]
[null,null,"факти-ческое\n(Ф)","плановое\n(П)"]
[1,null,2,3,4,5,null,6]
["1. Возможность личного приема заявителей и потребителей услуг уполномоченными должностными лицами территориальной сетевой организации - всего,",null,"-","-","-","-",null,{"$f":"(H11+H12)/2","v":2}]
["в том числе, по критериям:"]
["1.1. Количество структурных подразделений по работе с заявителями и потребителями услуг в процентном отношении к общему количеству структурных подразделений","%",1,1,{"$f":"(IF(AND(D11=0,C11=0),1,IF(AND(D11=0,C11>0),1.2,C11/D11)))","v":1},"прямая",null,{"$f":"IF(E11<80%,3,IF(E11>120%,1,2))","v":2}]
["1.2. Количество утвержденных территориальной сетевой организацией в установленном порядке организационно-распорядительных документов по вопросам работы с заявителями и потребителями услуг - всего, шт.","шт.",{"$f":"SUM(C14:C17)","v":13},{"$f":"SUM(D14:D17)","v":13},{"$f":"(IF(AND(D12=0,C12=0),1,IF(AND(D12=0,C12>0),1.2,C12/D12)))","v":1},"прямая",null,{"$f":"IF(E12<80%,3,IF(E12>120%,1,2))","v":2}]
["в том числе:"]
["а) регламенты оказания услуг и рассмотрения обращений заявителей и потребителей услуг, шт.","шт.",2,2,{"$f":"(IF(AND(D14=0,C14=0),1,IF(AND(D14=0,C14>0),1.2,C14/D14)))","v":1},"прямая",null,"-"]
["б) наличие положения о деятельности структурного подразделения по работе \nс заявителями и потребителями услуг ‎(наличие - 1, отсутствие - ‎‎0), шт.‎","шт.",1,1,{"$f":"(IF(AND(D15=0,C15=0),1,IF(AND(D15=0,C15>0),1.2,C15/D15)))","v":1},"прямая",null,"-"]
["в) должностные инструкции сотрудников, обслуживающих заявителей и потребителей услуг, шт.","шт.",7,7,{"$f":"(IF(AND(D16=0,C16=0),1,IF(AND(D16=0,C16>0),1.2,C16/D16)))","v":1},"прямая",null,"-"]
["г) утвержденные территориальной сетевой организацией в установленном порядке формы отчетности о работе с заявителями и потребителями услуг, шт.","шт.",3,3,{"$f":"(IF(AND(D17=0,C17=0),1,IF(AND(D17=0,C17>0),1.2,C17/D17)))","v":1},"прямая",null,"-"]
["2. Наличие телефонной связи для обращений потребителей услуг к уполномоченным должностным лицам территориальной сетевой организации,",null,"-","-","-","-",null,{"$f":"(H20+H21+H22)/3","v":2}]
["в том числе по критериям:"]
["2.1. Наличие единого телефонного номера для приема обращений потребителей услуг (наличие - 1, отсутствие - 0)","(наличие - 1, отсутствие - 0)",1,1,{"$f":"(IF(AND(D20=0,C20=0),1,IF(AND(D20=0,C20>0),1.2,C20/D20)))","v":1},"прямая",null,{"$f":"IF(E20<80%,3,IF(E20>120%,1,2))","v":2}]
["2.2. Наличие информационно-справочной системы для автоматизации обработки обращений потребителей услуг, поступивших по телефону (наличие - 1, отсутствие - 0)","(наличие - 1, отсутствие - 0)",0,0,{"$f":"(IF(AND(D21=0,C21=0),1,IF(AND(D21=0,C21>0),1.2,C21/D21)))","v":1},"прямая",null,{"$f":"IF(E21<80%,3,IF(E21>120%,1,2))","v":2}]
["2.3. Наличие системы автоинформирования потребителей услуг по телефону, предназначенной для доведения до них типовой информации (наличие - 1, отсутствие - 0)","(наличие - 1, отсутствие - 0)",1,1,{"$f":"(IF(AND(D22=0,C22=0),1,IF(AND(D22=0,C22>0),1.2,C22/D22)))","v":1},"прямая",null,{"$f":"IF(E22<80%,3,IF(E22>120%,1,2))","v":2}]
["3. Наличие в сети Интернет сайта территориальной сетевой организации с возможностью обмена информацией с потребителями услуг посредством электронной почты (наличие - 1, отсутствие - 0)","(наличие - 1, отсутствие - 0)",1,1,{"$f":"(IF(AND(D23=0,C23=0),1,IF(AND(D23=0,C23>0),1.2,C23/D23)))","v":1},"прямая",null,{"$f":"IF(E23<80%,3,IF(E23>120%,1,2))","v":2}]
["4. Проведение мероприятий по доведению до сведения потребителей услуг необходимой информации, в том числе путем ее размещения в сети Интернет, на бумажных носителях или иными доступными способами (проведение - 1, отсутствие - 0)","(наличие - 1, отсутствие - 0)",1,1,{"$f":"(IF(AND(D24=0,C24=0),1,IF(AND(D24=0,C24>0),1.2,C24/D24)))","v":1},"прямая",null,{"$f":"IF(E24<80%,3,IF(E24>120%,1,2))","v":2}]
["5. Простота и доступность схемы обжалования потребителями услуг действий должностных лиц территориальной сетевой организации, по критерию",null,"-","-","-","-",null,{"$f":"H26","v":2}]
["5.1. Общее количество обращений потребителей услуг о проведении консультаций по порядку обжалования действий (бездействия) территориальной сетевой организации в ходе исполнения своих функций в процентах от общего количества поступивших обращений","%",0,0,{"$f":"(IF(AND(D26=0,C26=0),1,IF(AND(D26=0,C26>0),1.2,C26/D26)))","v":1},"обратная",null,{"$f":"IF(E26<80%,1,IF(E26>120%,3,2))","v":2}]
["6. Степень полноты, актуальности и достоверности предоставляемой потребителям услуг информации о деятельности территориальной сетевой организации - всего,",null,"-","-","-","-",null,{"$f":"(H29+H30)/2","v":2}]
["в том числе по критериям:"]
["6.1. Общее количество обращений потребителей услуг о проведении консультаций по вопросам деятельности территориальной сетевой организации в процентах от общего количества поступивших обращений","%",1,1,{"$f":"(IF(AND(D29=0,C29=0),1,IF(AND(D29=0,C29>0),1.2,C29/D29)))","v":1},"обратная",null,{"$f":"IF(E29<80%,1,IF(E29>120%,3,2))","v":2}]
["6.2. Количество обращений потребителей услуг с указанием на отсутствие необходимой информации, которая должна быть раскрыта территориальной сетевой организацией в соответствии с нормативными правовыми актами, в процентах от общего количества поступивших обращений","%",0,0,{"$f":"(IF(AND(D30=0,C30=0),1,IF(AND(D30=0,C30>0),1.2,C30/D30)))","v":1},"обратная",null,{"$f":"IF(E30<80%,1,IF(E30>120%,3,2))","v":2}]
["7. Итого по индикатору \nинформативности (Ин)","-","-","-","-","-",null,{"$f":"(H9+H18+H23+H24+H25+H27)/6","v":2}]
[]
["Руководитель организации",null,{"$f":"'Инф-я'!$C$17","v":"Федулин Андрей Анатольевич"}]

{"sheet":"Форма 2.2","index":4,"n_rows":28,"n_cols":8,"rows_kept":28,"cut":false,"hidden":false,"merged":[[2,0,2,7],[3,0,3,7],[4,1,4,7],[6,0,7,1],[6,2,7,2],[6,3,6,4],[6,5,7,5],[6,6,7,6],[6,7,7,7],[8,0,8,1],[28,3,28,5],[28,6,28,7],[30,6,30,7],[30,8,30,10],[27,1,27,2],[27,3,27,5]]}
[]
[]
["Форма 2.2 - Расчет значения индикатора исполнительности за 2018 год"]
[{"$f":"'Инф-я'!C9","v":"АО \"Технопарк\""}]
[null,"(наименование территориальной сетевой организации)"]
[]
["Наименование параметра (показателя), характеризующего индикатор",null,"Ед.изм-ния","Значение",null,"Ф / П * 100, %","Зависи-мость","Оценочный балл "]
[null,null,null,"факти-ческое\n(Ф)","плановое\n(П)"]
[1,null,null,2,3,4,5,6]
[null,"1. Соблюдение сроков по процедурам взаимодействия с потребителями услуг (заявителями) - всего",null,"-","-","-","-",{"$f":"ROUND((H12+H13+H16)/3,3)","v":0.41699999999999998}]
[null,"в том числе, по критериям:"]
[null,"1.1. Среднее время, затраченное территориальной сетевой организацией на направление проекта договора оказания услуг по передаче электрической энергии потребителю услуг (заявителю), дней\n","дней",7,7,{"$f":"(IF(AND(E12=0,D12=0),1,IF(AND(E12=0,D12>0),1.2,D12/E12)))","v":1},"обратная",{"$f":"IF(F12<80%,0.25,IF(F12>120%,0.75,0.5))","v":0.5}]
[null,"1.2. Среднее время, необходимое для оборудования точки поставки приборами учета с момента подачи заявления потребителем услуг:","дней","-","-",{"$f":"(F14+F15)/2","v":0},"обратная",{"$f":"IF(F13<80%,0.25,IF(F13>120%,0.75,0.5))","v":0.25}]
[null,"а) для физических лиц, включая индивидуальных предпринимателей, и юридических лиц - субъектов малого и среднего предпринимательства, дней",null,15,15,null,"-","-"]
[null,"б) для остальных потребителей услуг, дней",null,15,15,null,"-","-"]
[null,"1.3. Количество случаев отказа от заключения и случаев расторжения потребителем услуг договоров оказания услуг по передаче электрической энергии, процентов от общего количества заключенных территориальной сетевой организацией договоров с потребителями услуг (заявителями), кроме физических лиц",null,0,0,{"$f":"(IF(AND(E16=0,D16=0),1,IF(AND(E16=0,D16>0),1.2,D16/E16)))","v":1},"обратная",{"$f":"IF(F16<80%,0.25,IF(F16>120%,0.75,0.5))","v":0.5}]
[null,"2. Соблюдение требований нормативных правовых актов Российской Федерации по поддержанию качества электрической энергии, по критерию",null,"-","-","-","-",{"$f":"(H18)","v":0.5}]
[null,"2.1. Количество обращений потребителей услуг с указанием на ненадлежащее качество электрической энергии, процентов от общего количества поступивших обращений\n","дней",0,0,{"$f":"(IF(AND(E18=0,D18=0),1,IF(AND(E18=0,D18>0),1.2,D18/E18)))","v":1},"обратная",{"$f":"IF(F18<80%,0.25,IF(F18>120%,0.75,0.5))","v":0.5}]
[null,"3. Наличие взаимодействия с потребителями услуг при выводе оборудования в ремонт и (или) из эксплуатации",null,"-","-","-","-",{"$f":"(H21+H22)/2","v":0.5}]
[null,"в том числе, по критериям:"]
[null,"3.1.  Наличие (отсутствие) установленной процедуры согласования с потребителями услуг графиков вывода электросетевого оборудования в ремонт и (или) из эксплуатации\n(наличие - 1, отсутствие - 0)","%",1,1,{"$f":"(IF(AND(E21=0,D21=0),1,IF(AND(E21=0,D21>0),1.2,D21/E21)))","v":1},"прямая",{"$f":"IF(F21<80%,0.75,IF(F21>120%,0.25,0.5))","v":0.5}]
[null,"3.2. Количество обращений потребителей услуг с указанием на несогласие введения предлагаемых территориальной сетевой организацией графиков вывода электросетевого оборудования в ремонт и (или) из эксплуатации, процентов от общего количества поступивших обращений, кроме физических лиц",null,0,0,{"$f":"(IF(AND(E22=0,D22=0),1,IF(AND(E22=0,D22>0),1.2,D22/E22)))","v":1},"обратная",{"$f":"IF(F22<80%,0.25,IF(F22>120%,0.75,0.5))","v":0.5}]
[null,"4. Соблюдение требований нормативных правовых актов по защите персональных данных потребителей услуг (заявителей), по критерию",null,"-","-","-","-",{"$f":"H24","v":0.2}]
[null,"4.1. Количество обращений потребителей услуг (заявителей) с указанием на неправомерность использования персональных данных потребителей услуг (заявителей), процентов от общего количества поступивших обращений","%",0,0,{"$f":"(IF(AND(E24=0,D24=0),1,IF(AND(E24=0,D24>0),1.2,D24/E24)))","v":1},"обратная",{"$f":"IF(F24<80%,0.1,IF(F24>120%,0.3,0.2))","v":0.2}]
[null,"5. Итого по индикатору \nисполнительности (Ис)","-","-","-","-","-",{"$f":"(H10+H17+H19+H23)/4","v":0.40425}]
[]
[]
[null,"Руководитель организации",null,{"$f":"'Инф-я'!$C$17","v":"Федулин Андрей Анатольевич"}]

{"sheet":"форма 2.3","index":5,"n_rows":36,"n_cols":8,"rows_kept":36,"cut":false,"hidden":false,"merged":[[35,0,35,1],[35,2,35,7],[33,2,33,4],[33,5,33,7],[2,0,2,7],[3,0,3,7],[4,0,4,7],[6,0,7,0],[6,1,7,1],[6,2,6,3],[6,4,7,4],[6,5,7,5],[6,7,7,7]]}
[]
[]
["Форма 2.3 - Расчет значения индикатора результативности обратной связи за 2018 год"]
[{"$f":"'Инф-я'!C9","v":"АО \"Технопарк\""}]
["(наименование территориальной сетевой организации)"]
[]
["Наименование параметра (показателя), характеризующего индикатор","Ед.изм-ния","Значение",null,"Ф / П * 100, %","Зависи-мость",null,"Оценочный балл "]
[null,null,"факти-ческое\n(Ф)","плановое\n(П)"]
[null,null,2,3,4,5,null,6]
["1. Наличие структурного подразделения территориальной сетевой организации по рассмотрению, обработке и принятию мер по обращениям потребителей услуг (наличие - 1, отсутствие - 0)","(наличие - 1, отсутствие - 0)",1,1,{"$f":"(IF(AND(D10=0,C10=0),1,IF(AND(D10=0,C10>0),1.2,C10/D10)))","v":1},"прямая",null,{"$f":"IF(E10<80%,3,IF(E10>120%,1,2))","v":2}]
["2. Степень удовлетворения обращений потребителей услуг",null,"-","-","-","-",null,{"$f":"(H13+H14+H15+H16+H17+H18)/6","v":2}]
["в том числе по критериям:"]
["2.1. Общее количество обращений потребителей услуг с указанием на ненадлежащее качество услуг по передаче электрической энергии и обслуживание, в процентах от общего количества поступивших обращений","%",0,0,{"$f":"(IF(AND(D13=0,C13=0),1,IF(AND(D13=0,C13>0),1.2,C13/D13)))","v":1},"обратная",null,{"$f":"IF(E13<80%,1,IF(E13>120%,3,2))","v":2}]
["2.2. Количество принятых мер по результатам рассмотрения обращений потребителей услуг с указанием на ненадлежащее качество услуг по передаче электрической энергии и обслуживание, в процентах от общего количества поступивших обращений","%",0,0,1,"прямая",null,{"$f":"IF(E14<80%,3,IF(E14>120%,1,2))","v":2}]
["2.3. Количество обращений, связанных с неудовлетворенностью принятыми мерами, указанными в п. 2.2 настоящей формы, поступивших от потребителей услуг в течение 30 рабочих дней после завершения мероприятий, указанных в п. 2.2 настоящей формы, в процентах от общего количества поступивших обращений","%",0,0,1,"обратная",null,{"$f":"IF(E15<80%,1,IF(E15>120%,3,2))","v":2}]
["2.4. Количество обращений потребителей услуг с указанием на ненадлежащее качество услуг, оказываемых территориальной сетевой организацией, поступивших в соответствующий контролирующий орган исполнительной власти, в процентах от общего количества поступивших обращений","%",0,0,1,"обратная",null,{"$f":"IF(E16<80%,1,IF(E16>120%,3,2))","v":2}]
["2.5. Количество отзывов и предложений по вопросам деятельности территориальной сетевой организации, поступивших через обратную связь, в процентах от общего количества поступивших обращений","%",0,0,1,"прямая",null,{"$f":"IF(E17<80%,3,IF(E17>120%,1,2))","v":2}]
["2.6. Количество реализованных изменений в деятельности организации, направленных на повышение качества обслуживания потребителей услуг, шт.","шт.",2,2,1,"прямая",null,{"$f":"IF(E18<80%,3,IF(E18>120%,1,2))","v":2}]
["3. Оперативность реагирования на обращения потребителей услуг - всего,",null,"-","-","-","-",null,{"$f":"(H21+H22)/2","v":2}]
["в том числе по критериям:"]
["3.1. Средняя продолжительность времени принятия мер по результатам обращения потребителя услуг, дней","дней",3,3,{"$f":"(IF(AND(D21=0,C21=0),1,IF(AND(D21=0,C21>0),1.2,C21/D21)))","v":1},"обратная",null,{"$f":"IF(E21<80%,1,IF(E21>120%,3,2))","v":2}]
["3.2. Взаимодействие территориальной сетевой организации с потребителями услуг с целью получения информации о качестве обслуживания, реализованное посредством:",null,"-","-","-","-",null,{"$f":"(H23+H24+H25)/3","v":2}]
["а) письменных опросов, шт. на 1000 потребителей услуг","шт. на 1000 потребителей услуг",0,0,1,"прямая",null,{"$f":"IF(E23<80%,3,IF(E23>120%,1,2))","v":2}]
["б) электронной связи через сеть Интернет, шт. на 1000 потребителей услуг","шт. на 1000 потребителей услуг",0,0,1,"прямая",null,{"$f":"IF(E24<80%,3,IF(E24>120%,1,2))","v":2}]
["в) системы автоинформирования,шт. на 1000 потребителей услуг","шт. на 1000 потребителей услуг",0,0,1,"прямая",null,{"$f":"IF(E25<80%,3,IF(E25>120%,1,2))","v":2}]
["4. Индивидуальность подхода к потребителям услуг льготных категорий, по критерию",null,"-","-","-","-",null,{"$f":"H27","v":2}]
["4.1. Количество обращений потребителей услуг льготных категорий с указанием на неудовлетворительность качества их обслуживания, шт. на 1000 потребителей услуг","шт. на 1000 потребителей услуг",0,0,1,"обратная",null,{"$f":"IF(E27<80%,1,IF(E27>120%,3,2))","v":2}]
["5. Оперативность возмещения убытков потребителям услуг при несоблюдении территориальной сетевой организацией обязательств, предусмотренных нормативными правовыми актами и договорами",null,"-","-","-","-",null,{"$f":"(H30+H31)/2","v":2}]
["в том числе по критериям:"]
["5.1. Средняя продолжительность времени на принятие территориальной сетевой организацией мер по возмещению потребителю услуг убытков, месяцев","месяцев",0,0,{"$f":"(IF(AND(D30=0,C30=0),1,IF(AND(D30=0,C30>0),1.2,C30/D30)))","v":1},"обратная",null,{"$f":"IF(E30<80%,1,IF(E30>120%,3,2))","v":2}]
["5.2. Доля потребителей услуг, получивших возмещение убытков, возникших в результате неисполнения (ненадлежащего исполнения) территориальной сетевой организацией своих обязательств, от числа потребителей, в пользу которых было вынесено судебное решение, или возмещение было произведено во внесудебном порядке, %","%",0,0,1,"прямая",null,{"$f":"IF(E31<80%,3,IF(E31>120%,1,2))","v":2}]
["6. Итого по индикатору результативности обратной связи (Рс)","-","-","-","-","-",null,{"$f":"(H10+H11+H19+H26+H28)/5","v":2}]
[]
[]
[]
["Руководитель организации",null,{"$f":"'Инф-я'!$C$17","v":"Федулин Андрей Анатольевич"}]

{"sheet":"форма 2.4","index":6,"n_rows":16,"n_cols":3,"rows_kept":16,"cut":false,"hidden":false,"merged":[[15,1,15,2],[18,1,18,2],[3,0,3,2],[1,0,2,2],[4,0,4,2],[5,0,5,2],[7,1,9,1],[8,0,9,0],[14,0,14,2]]}
[]
["Форма 2.4 - Расчет фактического значения показателя уровня качества оказываемых услуг территориальной (прочей) сетевой организацией за 2018 год"]
[]
[{"$f":"'Инф-я'!C9","v":"АО \"Технопарк\""}]
[]
["(наименование территориальной сетевой организации)"]
[]
[null,"Ед.изм-ния"]
["Предлагаемые плановые значения параметров (критериев), характеризующих индикаторы качества **",null,"2018"]
[null,null,"(год)"]
["Ин (индикатор информативности) ",null,{"$f":"'Форма 2.1'!H31","v":2}]
["Ис ( индикатор исполнительности)",null,{"$f":"ROUND('Форма 2.2'!H25,3)","v":0.40400000000000003}]
["Рс (индикатор результативности обратной связи)",null,{"$f":"'форма 2.3'!H32","v":2}]
["Фактическое значение показателя уровня качества оказываемых услуг территориальной сетевой организации",null,{"$f":"0.1*C11+0.7*C12+0.2*C13","v":0.88280000000000003}]
[]
["Руководитель организации",{"$f":"'Инф-я'!$C$17","v":"Федулин Андрей Анатольевич"}]

{"sheet":"форма 3 ","index":7,"n_rows":39,"n_cols":4,"rows_kept":39,"cut":false,"hidden":false,"merged":[[38,0,38,1],[38,2,38,4],[9,1,9,2],[0,0,1,3],[4,0,4,3],[6,0,6,3],[7,1,7,2],[8,1,8,2],[27,1,27,2],[10,1,10,2],[11,0,11,2],[12,0,12,2],[16,0,16,3],[17,1,17,2],[18,1,18,2],[19,1,19,2],[20,1,20,2],[21,0,21,2],[22,0,22,2],[26,0,26,3],[36,0,36,2],[28,1,28,2],[29,1,29,2],[30,1,30,2],[31,0,31,2],[32,0,32,2],[35,0,35,3]]}
["Формы, используемые для расчета значений показателей уровня качества оказываемых услуг"]
[]
[]
[]
[{"$f":"'Инф-я'!C9","v":"АО \"Технопарк\""}]
[null,null,null,"Форма 3.1"]
["Отчетные данные для расчета значения показателя качества рассмотрения заявок на технологическое присоединение к сети за 2018 год"]
["№ п/п","Наименование",null,"Значение"]
[1,2,null,3]
[1,"Число заявок на технологическое присоединение к сети, поданных в соответствии с требованиями нормативных правовых актов, по которым сетевой организацией в соответствующий расчетный период направлен проект договора об осуществлении технологического присоединения заявителей к сети, шт. (Nзаяв_тпр)",null,"3"]
[2,"Число заявок на технологическое присоединение к сети, поданных в соответствии с требованиями нормативных правовых актов, по которым сетевой организацией в соответствующий расчетный период направлен проект договора об осуществлении технологического присоединения заявителей к сети с нарушением установленных сроков его направления, шт. (Nнсзаяв_тпр)",null,"0"]
["max (1, Nзаяв_тпр - Nнсзаяв_тпр)",null,null,{"$f":"MAX(1,D10-D11)","v":3}]
["Пзаяв_тпр",null,null,{"$f":"IF(D10=\"\",1,IF(D10=\"0\",1,D10/D12))","v":1}]
[]
[]
[null,null,null,"Форма 3.2"]
["Отчетные данные для расчета значения показателя качества исполнения договоров об осуществлении технологического присоединения заявителей к сети за 2018 год"]
["№ п/п","Наименование",null,"Значение"]
[1,2,null,3]
[1,"Число договоров об осуществлении технологического присоединения заявителей к сети, исполненных в соответствующем расчетном периоде, по которым имеется подписанный сторонами акт о технологическом присоединении, шт. (Nсд_тпр)",null,"2"]
[2,"Число договоров об осуществлении технологического присоединения заявителей к сети, исполненных в соответствующем расчетном периоде, по которым имеется подписанный сторонами акт о технологическом присоединении, по которым произошло нарушение установленных сроков технологического присоединения, шт. (Nнссд_тпр)",null,"0"]
["max (1, Nсд_тпр - Nнссд_тпр)",null,null,{"$f":"MAX(1,D20-D21)","v":2}]
["Пнс_тпр",null,null,{"$f":"IF(D20=\"\",1,IF(D20=\"0\",1,D20/D22))","v":1}]
[]
[]
[null,null,null,"Форма 3.3"]
["Отчетные данные для расчета значения показателя соблюдения антимонопольного законодательства при технологическом присоединении заявителей к электрическим сетям сетевой организации за 2018 год"]
["№ п/п","Наименование",null,"Значение"]
[1,2,null,3]
[1,"Число вступивших в законную силу решений антимонопольного органа и (или) суда об установлении нарушений сетевой организацией требований антимонопольного законодательства Российской Федерации в части оказания услуг по технологическому присоединению в соответствующем расчетном периоде, шт. (Nн_тпр)",null,"0"]
[2,"Общее число заявок на технологическое присоединение к сети, поданных заявителями в соответствующий расчетный период, в десятках шт. без округления (Nочз_тпр)",null,"1"]
["max (1, Nочз_тпр - Nн_тпр)",null,null,{"$f":"MAX(1,D31-D30)","v":1}]
["Пнпа_тпр",null,null,{"$f":"IF(D31=\"\",1,IF(D31=\"0\",1,D31/D32))","v":1}]
[]
[]
["Показатель уровня качества осуществляемого технологического присоединения к сети за 2018 год, Птпр"]
["Птпр",null,null,{"$f":"0.4*D13+0.4*D23+0.2*D33","v":1}]
[]
["Руководитель организации",null,{"$f":"'Инф-я'!$C$17","v":"Федулин Андрей Анатольевич"}]

{"sheet":"Форма 8.1 предприятие","index":8,"n_rows":38,"n_cols":29,"rows_kept":38,"cut":false,"hidden":false,"merged":[[6,6,8,6],[0,0,0,16],[1,0,1,26],[2,0,2,26],[3,0,3,26],[5,0,5,8],[5,9,5,21],[5,22,8,22],[5,23,5,25],[5,26,8,26],[6,0,8,0],[6,1,8,1],[6,2,8,2],[6,3,8,3],[6,4,8,4],[6,5,8,5],[6,7,8,7],[6,8,8,8],[6,9,8,9],[6,10,8,10],[6,11,8,11],[6,21,8,21],[6,23,8,23],[6,24,8,24],[6,25,8,25],[7,12,8,12],[7,13,7,15],[7,16,7,19],[7,20,8,20],[6,12,6,20],[9,5,9,6],[21,0,21,28],[22,0,22,1],[22,5,22,6],[23,0,23,1],[23,5,23,6],[24,0,24,1],[24,5,24,6],[25,0,25,1],[25,5,25,6],[26,0,26,1],[26,5,26,6],[37,0,37,2],[31,0,31,13],[31,14,31,26],[32,0,32,13],[32,14,32,26],[35,0,35,2],[36,0,36,2]]}
["Начиная с 2018 года, если сетевая организация не предоставила информацию в соответствии с разделом 6 настоящих методических указаний, Коэффициент достижения (недостижения, перевыполнения) уровня надежности оказываемых услуг будет равен -1"]
["Форма_8.1 - Журнал учета данных первичной информации по всем прекращениям передачи электрической энергии произошедших на объектах сетевой организации за 2018 год"]
["АО \"Технопарк\""]
["Наименование электросетевой организации"]
[]
["Данные о факте прекращения передачи электрической энергии",null,null,null,null,null,null,null,null,"Данные о масштабе прекращения передачи электрической энергии в сетевой организации",null,null,null,null,null,null,null,null,null,null,null,null,"Перечень смежных сетевых организаций, затронутых прекращением передачи электрической энергии","Данные о причинах прекращения передачи электрической энергии и их расследовании",null,null,"Учет в показателях надежности, в т.ч. индикативных показателях надежности (0 - нет, 1 - да) 3"]
["Номер прекращения передачи электрической энергии /\nНомер итоговой строки","Наименование структурной единицы сетевой организации 1","Вид объекта:\nКЛ, ВЛ, КВЛ, ПС, ТП, РП","Диспетчерское наименование объекта электросетевого хозяйства сетевой организации, в результате отключения которой произошло прекращение передачи электроэнергии потребителям услуг","Высший класс напряжения отключенного оборудования сетевой организации, Кв","Время и дата начала прекращения передачи электрической энергии (часы, минуты, ГГГГ.ММ.ДД)","Время и дата восстановления режима потребления электрической энергии потребителей услуг (часы, минуты, ГГГГ.ММ.ДД)","Вид прекращения передачи электроэнергии (П, А, В) 2","Продолжительность прекращения передачи электрической энергии, час.","Перечень объектов электросетевого хозяйства, отключение которых привело к прекращению передачи электрической энергии потребителям услуг (ПС, ТП, РП, ВЛ, КЛ)","Перечень потребителей 1-й и 2-й категорий надежности, в отношении которых произошло полное ограничение режима потребления электрической энергии","Перечень потребителей 1-й и 2-й категорий надежности, в отношении которых произошло частичное ограничение режима потребления электрической энергии","Количество точек поставки потребителей услуг сетевой организации, в отношении которых произошел перерыв электроснабжения, шт., в том числе:",null,null,null,null,null,null,null,null,"Суммарный объем фактической нагрузки (мощности) на присоединениях потребителей услуг, по которым произошло прекращение передачи электрической энергии на момент возникновения такого события, кВт",null,"Номер и дата акта расследования технологического нарушения, записи в оперативном журнале","Код организационной причины аварии","Код технической причины повреждения оборудования"]
[null,null,null,null,null,null,null,null,null,null,null,null,"Всего","в разделении категорий надежности потребителей электрической энергии",null,null,"в разделении уровней напряжения ЭПУ потребителя электрической энергии",null,null,null,"Смежные сетевые организации и производители электрической энергии"]
[null,null,null,null,null,null,null,null,null,null,null,null,null,"1-я категория надежности","2-я категория надежности","3-я категория надежности","BH\n(110 кВ и выше)","CH1\n(35 кВ)","CH2\n(6-20 кВ)","HH\n(0,22-1 кВ)"]
[1,"2","3","4","5","6",null,"8","9","10","11","12","13","14","15","16","17","18","19","20","21","22","23","24","25","26","27"]
[1,"АО \"Технопарк\"","ПС","ЭВ ПС № 234 \"Насосная\"","110","2018-01-31T07:25:00","2018-01-31T07:27:00","В",{"$f":"(G11-F11)*24","v":3.3333333267364651E-2},"ПС 110кВ, ТП 6кВ, КЛ 6кВ",0,0,{"$f":"N11+O11+P11+U11","v":36},0,0,36,0,0,19,17,null,2100,null,"№ 1 от 31.01.2018","3.4.7.3",null,1,{"$f":"(IF(AND(H11=$H$26,AA11=1),M11*I11,0))","v":1.1999999976251274},{"$f":"IF(H11=$H$24,M11*I11,0)","v":0}]
[2,"АО \"Технопарк\"","ТП","Ячейка № 14 Ру 6кВ РТП № 3","6","2018-03-03T09:30:00","2018-03-03T10:40:00","В",{"$f":"(G12-F12)*24","v":1.1666666666278616},"ТП 6кВ",0,1,1,0,1,0,0,0,0,1,null,484,null,"№ 2 от 03.03.2018","3.4.9.3",null,1,{"$f":"(IF(AND(H12=$H$26,AA12=1),M12*I12,0))","v":1.1666666666278616},0]
[3,"АО \"Технопарк\"","КЛ","КЛ 6кВ от ПС № 234 \"Насосная\" до ТП № 8","6","2018-04-06T12:01:00","2018-04-07T08:40:00","В",20.649999999906868,"КЛ 6кВ,  ТП 6кВ",0,0,1,0,0,1,0,0,0,1,null,5,null,"№ 3 от 07.04.2018",null,"4.12",1,20.649999999906868,0]
[4,"АО \"Технопарк\"","КЛ","КЛ 6кВ от ПС № 234 \"Насосная\" до РТП № 1","6","2018-04-23T14:30:00","2018-04-23T14:45:00","В",0.25000000011641532,"КЛ 6кВ",0,0,2,0,0,2,0,0,2,0,null,300,null,"№ 4 от 23.04.2018","3.4.8.1",null,1,0.50000000023283064,0]
[5,"АО \"Технопарк\"","КЛ","КЛ 6кВ от РТП № 3 до РТП № 1","6","2018-08-03T05:29:00","2018-08-03T06:40:00","В",1.1833333333488554,"КЛ 6кВ",0,0,2,0,0,2,0,0,1,1,null,40,null,"№ 5 от 03.08.2018",null,"4.12",1,2.3666666666977108,0]
[6,"АО \"Технопарк\"","ТП","РТП № 3 РУ 6кВ яч. № 3","6","2018-08-16T08:09:00","2018-08-16T09:40:00","В",1.5166666667209938,"ТП 6кВ",0,0,1,0,0,1,0,0,1,0,null,300,null,"№ 6 от16.08.2018","3.4.9.3",null,1,1.5166666667209938,0]
[7,"АО \"Технопарк\"","КЛ","КЛ 6кВ от яч. № 10 РУ 6кВ ПС № 234 \"Насосная\" до ТП 7-9","6","2018-10-22T08:35:00","2018-10-22T10:20:00","В",1.7499999999417923,"КЛ 6кВ",0,0,1,0,0,1,0,0,1,0,null,97,null,"№ 7 от 22.10.2018",null,"4.12",1,1.7499999999417923,0]
[8,"АО \"Технопарк\"","КЛ","Панель № 10 РУ 0,4кВ ТП № 13 присоединение сетевой насос № 3 АО \"РГК-1\"","0,38","2018-10-23T06:54:00","2018-10-23T08:42:00","В",1.8000000001047738,"КЛ 0,4кВ",0,1,1,0,1,0,0,0,0,1,null,160,null,"№ 8 от 23.10.2018","3.4.14",null,1,1.8000000001047738,0]
[9,"АО \"Технопарк\"","ТП","ТП № 25","6","2018-12-07T09:15:00","2018-12-07T13:20:00","В",4.0833333333721384,"ТП 6кВ",0,0,3,0,0,3,0,0,0,3,null,60,null,"№9 от 07.12.2018","3.4.9.3",null,1,12.250000000116415,0]
[10,"АО \"Технопарк\"","КЛ","КЛ 0,4кВ от РУ 0,4кВ РТП № 1 до киоска \"Роспечать\"","0,38","2018-12-10T15:23:00","2018-12-11T13:40:00","В",22.283333333325572,"КЛ 0,4кВ",0,0,1,0,0,1,0,0,0,1,null,2.5,null,"№ 10 от 10.12.2018",null,"4.13",1,22.283333333325572,0]
[11,"АО \"Технопарк\"","КЛ","КЛ 0,4кВ от ТП № 21 до РЩ 0,4кВ № 2","0,38","2018-12-27T08:55:00","2018-12-27T11:40:00","В",2.7499999998835847,"КЛ 0,4кВ",0,0,1,0,0,1,0,0,0,1,null,5,null,"№ 11 от 27.12.2018",null,"4.12",1,2.7499999998835847,0]
["Добавить"]
["Итого по всем прекращениям передачи\nэлектрической энергии за отчетный период:",null,"х","х","х","х",null,"И",{"$f":"SUBTOTAL(9,I11:I21)","v":57.46666666661622},"х","х","х",{"$f":"SUBTOTAL(9,M11:M21)","v":50},{"$f":"SUBTOTAL(9,N11:N21)","v":0},2,48,0,0,24,26,{"$f":"SUBTOTAL(9,U11:U16)","v":0},{"$f":"SUBTOTAL(9,V11:V21)","v":3553.5},{"$f":"SUBTOTAL(9,W11:W16)","v":0},"х","х","х","0;1",{"$f":"SUM(AB11:AB22)","v":68.23333333118353},{"$f":"SUM(AC11:AC22)","v":0}]
["- по ограничениям, связанным с проведением ремонтных работ",null,"х","х","х","х",null,"П",{"$f":"SUMIF(H$11:H$16,H24,I$11:I$16)","v":0},"х","х","х",{"$f":"SUMIF(H$11:H$16,H24,M$11:M$16)","v":0},{"$f":"SUMIF(H$11:H$16,H24,N$11:N$16)","v":0},{"$f":"SUMIF(H$11:H$16,H24,O$11:O$16)","v":0},{"$f":"SUMIF(H$11:H$16,H24,P$11:P$16)","v":0},{"$f":"SUMIF(H$11:H$16,H24,Q$11:Q$16)","v":0},{"$f":"SUMIF(H$11:H$16,H24,R$11:R$16)","v":0},{"$f":"SUMIF(H$11:H$16,H24,S$11:S$16)","v":0},{"$f":"SUMIF(H$11:H$16,H24,T$11:T$16)","v":0},{"$f":"SUMIF(H$11:H$16,H24,U$11:U$16)","v":0},{"$f":"SUMIF(H$11:H$16,H24,V$11:V$16)","v":0},{"$f":"SUMIF(H$11:H$16,H24,W$11:W$16)","v":0},"х","х","х","0","х","х"]
["- по аварийным ограничениям",null,"х","х","х","х",null,"А",{"$f":"SUMIF(H$11:H$16,H25,I$11:I$16)","v":0},"х","х","х",{"$f":"SUMIF(H$11:H$16,H25,M$11:M$16)","v":0},{"$f":"SUMIF(H$11:H$16,H25,N$11:N$16)","v":0},{"$f":"SUMIF(H$11:H$16,H25,O$11:O$16)","v":0},{"$f":"SUMIF(H$11:H$16,H25,P$11:P$16)","v":0},{"$f":"SUMIF(H$11:H$16,H25,Q$11:Q$16)","v":0},{"$f":"SUMIF(H$11:H$16,H25,R$11:R$16)","v":0},{"$f":"SUMIF(H$11:H$16,H25,S$11:S$16)","v":0},{"$f":"SUMIF(H$11:H$16,H25,T$11:T$16)","v":0},{"$f":"SUMIF(H$11:H$16,H25,U$11:U$16)","v":0},{"$f":"SUMIF(H$11:H$16,H25,V$11:V$16)","v":0},{"$f":"SUMIF(H$11:H$16,H25,W$11:W$16)","v":0},"х","х","х","1","х","х"]
["- по внерегламентным отключениям",null,"х","х","х","х",null,"В",{"$f":"SUMIF(H$11:H$21,H26,I$11:I$21)","v":57.46666666661622},"х","х","х",{"$f":"SUMIF(H$11:H$16,H26,M$11:M$16)","v":43},{"$f":"SUMIF(H$11:H$16,H26,N$11:N$16)","v":0},2,{"$f":"SUMIF(H$11:H$16,H26,P$11:P$16)","v":42},{"$f":"SUMIF(H$11:H$16,H26,Q$11:Q$16)","v":0},{"$f":"SUMIF(H$11:H$16,H26,R$11:R$16)","v":0},{"$f":"SUMIF(H$11:H$16,H26,S$11:S$16)","v":23},{"$f":"SUMIF(H$11:H$16,H26,T$11:T$16)","v":20},{"$f":"SUMIF(H$11:H$16,H26,U$11:U$16)","v":0},{"$f":"SUM(V11:V21)","v":3553.5},{"$f":"SUMIF(H$11:H$16,H26,W$11:W$16)","v":0},"х","х","х","0;1","х","х"]
["- по внерегламентным отключениям,учитываемым при расчете показателей надежности, в том числе индикативных показателей надежности",null,"х","х","х","х",null,"В1",0,"х","х","х",0,{"$f":"SUM((AA11:AA16=1)*(H11:H16=$H$26)*N11:N16)","v":0},0,0,{"$f":"SUM((AA11:AA16=1)*(H11:H16=$H$26)*Q11:Q16)","v":0},{"$f":"SUM((AA11:AA16=1)*(H11:H16=$H$26)*R11:R16)","v":0},0,0,{"$f":"SUM((AA11:AA16=1)*(H11:H16=$H$26)*U11:U16)","v":0},0,{"$f":"SUM((AA11:AA16=1)*(H11:H16=$H$26)*W11:W16)","v":0},"х","х","х","0","х","х"]
[]
[]
[]
[]
["Директор",null,null,null,null,null,null,null,null,null,null,null,null,null,"А.А. Федулин"]
["Должность",null,null,null,null,null,null,null,null,null,null,null,null,null,"Ф. И. О."]
[]
["Примечание"]
["1 Указываются наименования производственных отделений или предприятий электрических сетей."]
["2  \"П\" - плановое отключение, связанное с необходимостью проведения ремонтно-восстановительных работ в соответствии с разделом III Правил полного и (или) частичного ограничения режима потребления электрической энергии;\n    \"А\" - аварийное ограничение, связанное с введением в действие графиков аварийного ограничения режима потребления в соответствии с пунктами 40-46 Правил полного и(или) частичного ограничения режима потребления электрической энергии;\n    \"В\" - внерегламентное отключение в соответствии с пунктом 47 Правил полного и (или) частичного ограничения режима потребления электрической энергии\n"]
["3 указывается 0 (ноль), если прекращение передачи электрической энергии не включается в расчет показателей надежности, что соответствует кодам организационных причин аварии  в соответствии с приложением N 2 приказа Минэнерго России N 90 и в соответствии с положениями  Методических указаний утв. приказом МИНЭНЕРГО № 1256 ;\nуказывается 1 (один), если прекращение передачи электрической энергии включается в расчет показателей надежности, что соответствует кодам организационных причин аварии  в соответствии с приложением N 2 приказа Минэнерго России N 90 и в соответствии с положениями  Методических указаний утв. приказом МИНЭНЕРГО № 1256 ;.\n"]

{"sheet":"Корр. КНК","index":9,"n_rows":30,"n_cols":8,"rows_kept":30,"cut":false,"hidden":false,"merged":[[29,0,29,7],[1,0,1,4],[3,0,3,4],[14,1,14,2],[16,0,16,6],[18,0,19,0],[18,1,19,1],[18,6,18,7],[26,0,26,1],[26,2,26,4],[18,2,19,2],[18,3,19,3],[18,4,18,5]]}
[]
["Корректировка НВВ с учетом надежности и качества оказываемых услуг по результатам 2018 года"]
[]
[{"$f":"'Инф-я'!C9","v":"АО \"Технопарк\""}]
[]
["№ п/п","Наименование показателей","Обзнач. в МУ","По данным организации","По данным экспертов"]
[1,2,3,4,5]
["1.","Оценка достижения показателя уровня надежности   оказываемых услуг",null,{"$f":"(IF(AND(D22=0,E22=0),0,IF(AND(72<F22,F22<128),0,IF(F22>=128,-1,IF(F22<=72,1)))))","v":1},{"$f":"(IF(AND(G22=0,D22=0),0,IF(AND(72<H22,H22<128),0,IF(H22>=128,-1,IF(H22<=72,1)))))","v":0}]
["2.","Оценка достижения показателя уровня качества осуществляемого технологического присоединения к сети",null,{"$f":"(IF(AND(D23=0,E23=0),0,IF(AND(72<F23,F23<128),0,IF(F23>=128,-1,IF(F23<=72,1)))))","v":0},{"$f":"(IF(AND(G23=0,D23=0),0,IF(AND(72<H23,H23<128),0,IF(H23>=128,-1,IF(H23<=72,1)))))","v":1}]
["3.","Оценка достижения показателя уровня качества оказываемых услуг",null,{"$f":"(IF(AND(72<F24,F24<128),0,IF(F24>=128,-1,IF(F24<=72,1))))","v":1},{"$f":"(IF(AND(72<H24,H24<128),0,IF(H24>=128,-1,IF(H24<=72,1))))","v":1}]
["4.","Обобщенный показатель уровня надежности и качества оказываемых услуг ","                           ",{"$f":"D8*0.65+D9*0.25+D10*0.1","v":0.75},{"$f":"E8*0.65+E9*0.25+E10*0.1","v":0.35}]
["5.","Максимальный процент корректировки, %",null,0.02,0.02]
["6.","Коэффициент, корректирующий НВВ с учетом надежности и качества оказываемых услуг",null,{"$f":"D11*D12","v":1.4999999999999999E-2},{"$f":"E11*E12","v":6.9999999999999993E-3}]
["7.","Утвержденная НВВ на содержание электрических сетей (тыс. руб.)",null,25414.79]
["8.","Величина корректировки НВВ с учетом надежности и качества оказываемых услуг",null,{"$f":"D13*D14","v":381.22185000000002},{"$f":"E13*E14","v":0}]
[]
["Показатели уровня надежности и уровня качества оказываемых услуг"]
[]
["№ п/п","Наименование показателей","Обозначение в Методических  указаниях","Утверждено на 2018 год","По данным организации",null,"По данным экспертов"]
[null,null,null,null,"Факт","% отклонения","Факт","% отклонения"]
[1,2,3,4,5,6,7,8]
["1.","Показатель средней продолжительности прекращений передачи электрической энергии",null,0,{"$f":"'Форма 1.2'!E8","v":1.1491999999999998},{"$f":"IF(D22=0,0,E22/D22*100)","v":0},null,{"$f":"IF(D22=0,0,G22/D22*100)","v":0}]
["2.","Показатель уровня качества осуществляемого технологического присоединения к сети",null,1,{"$f":"'форма 3 '!D37","v":1},{"$f":"IF(D23=0,0,E23/D23*100)","v":100},null,{"$f":"IF(D23=0,0,G23/D23*100)","v":0}]
["3.","Показатель уровня качества обслуживания потребителей услуг ",null,0,{"$f":"'форма 2.4'!C14","v":0.88280000000000003},{"$f":"IF(D24=0,0,E24/D24*100)","v":0},null,{"$f":"IF(D24=0,0,G24/D24*100)","v":0}]
[]
[]
["Руководитель организации",null,{"$f":"'Инф-я'!$C$17","v":"Федулин Андрей Анатольевич"}]
[]
[]
["Приказ Министерства энергетики РФ от 14 октября 2013 г. N 718 \"Об утверждении Методических указаний по расчету уровня надежности и качества поставляемых товаров и оказываемых услуг для организации по управлению единой национальной (общероссийской) электрической сетью и территориальных сетевых организаций\" (с изменениями и дополнениями) Методические указания по расчету уровня надежности и качества поставляемых товаров и оказываемых услуг для организации по управлению единой национальной (общероссийской) электрической сетью и территориальных сетевых организаций 4. Порядок определения плановых и фактических значений показателей надежности и качества услуг   4.3. Коэффициенты допустимого отклонения на первый долгосрочный период регулирования устанавливаются равными: для организации по управлению единой национальной (общероссийской) электрической сетью для показателя уровня надежности оказания услуг - 25% на первые три расчетных периода регулирования и 20% на следующие расчетные периоды регулирования первого долгосрочного периода регулирования, а для показателя уровня качества оказания услуг - 15%; для территориальных сетевых организаций, в отношении которых переход к регулированию цен (тарифов) на услуги по передаче электрической энергии в форме долгосрочных тарифов на основе долгосрочных параметров регулирования деятельности осуществлен до 1 июля 2010 г., - 30% на первые три расчетных периода регулирования и 25% на следующие расчетные периоды регулирования первого долгосрочного периода регулирования; для остальных территориальных сетевых организаций - 35% на первые три расчетных периода регулирования и 30% на следующие расчетные периоды регулирования первого долгосрочного периода регулирования. В последующие долгосрочные периоды регулирования коэффициенты снижаются в случае достижения показателей на 1% в год - до 15% для организации по управлению единой национальной (общероссийской) электрической сетью и до 25% для территориальных сетевых организаций."]

{"sheet":"Выбор оценочного балла","index":10,"n_rows":8,"n_cols":3,"rows_kept":8,"cut":false,"hidden":true,"merged":[[1,0,1,2],[3,0,3,1],[3,2,4,2],[6,0,6,1]]}
[]
["Выбор оценочного балла"]
[]
["Принимаемое значение (Ф / П * 100, % )                             (гр.4 форм 2.1-2.3) ",null,"Оценочный балл                                                           (гр.6 форм 2.1 - 2.3)"]
["прямая зависимость                     (гр.5 форм 2.1 - 2.3)","обратная  зависимость                   (гр.5 форм 2.1 - 2.3)"]
["гр.4 форм 2.1-2.3 < 80%","гр.4 форм 2.1-2.3 > 120 %","3 балла - для всех пунктов форм 2.1 - 2.3                                                                                    кроме:                                                                 0,75 баллов -  для п. 2, 5, 6 формы 2.2                 0,3 балла - для п. 3,4,7 формы 2.2"]
["80 % ≤ гр.4 форм 2.1-2.3 ≤ 120 %",null,"2 балла - для всех пунктов форм 2.1 - 2.3                                                                               кроме:                                                                 0,5 баллов -  для п. 2, 5, 6 формы 2.2                    0,2 балла - для п. 3,4,7 формы 2.2"]
["гр.4 форм 2.1-2.3 > 120 %","гр.4 форм 2.1-2.3 < 80%","1 балл - для всех пунктов форм 2.1 - 2.3                                                                               кроме:                                                                 0,25 баллов -  для п. 2, 5, 6 формы 2.2                 0,1 балла - для п. 3,4,7 формы 2.2"]